[Event "Polish Ekstraliga 2024"]
[Site "Walbrzych"]
[Date "2024.10.08"]
[Round "2.20"]
[White "Kuzmicz, Krystian"]
[Black "Navara, David"]
[Result "1/2-1/2"]
[ECO "B22"]
[WhiteElo "2471"]
[BlackElo "2683"]
[Annotator "TA"]
[PlyCount "47"]
[EventDate "2024.10.05"]
[EventType "team-tourn"]
[EventCountry "POL"]
[SourceTitle "playchess.com"]
[Source "ChessBase"]
[SourceQuality "1"]
[WhiteTeam "Wisznia Mala"]
[BlackTeam "Katowice"]
[TimeControl "40/5400+30:1800+30"]

{[%evp 15,47,0,0,0,0,0,0,0,0,0,0,0,40,27,22,35,41,37,27,22,80,80,71,79,81,31,19,6,6,0,0,0,0,0]} 1. e4 {[%emt 0:00:04][%cal Be2e4,Be4e5][%mdl 32]} c5 {[%emt 0:00:05]} 2. c3 {[%emt 0:00:24][%cal Bc2c3,Bc3d4,Bd4e5][%mdl 32]} Nf6 {[%emt 0:00:06][%cal Bg8f6,Bf6d5,Bd5b4][%mdl 32]} 3. e5 {[%emt 0:00:11]} Nd5 {[%emt 0:00:03]} 4. d4 {[%emt 0:00:25]} cxd4 {[%emt 0:00:10]} 5. Nf3 {[%emt 0:00:18]} Nc6 {[%emt 0:00:11]} 6. cxd4 {[%emt 0:00:50]} d6 {[%emt 0:00:04]} 7. Bc4 {[%emt 0:00:18]} dxe5 {[%emt 0:00:12]} 8. dxe5 {[%emt 0:03:19]} Ndb4 {[%emt 0:00:14]} 9. O-O {[%emt 0:02:24]} Qxd1 {[%emt 0:00:23]} 10. Rxd1 {[%emt 0:00:02]} Bg4 {[%emt 0:01:20] aiming for ...Nc2.} 11. Nc3 {[%emt 0:05:45][%cal Bb1c3,Bc3b5,Bb5a7][%mdl 32]} Bxf3 {[%emt 0:06:26]} 12. gxf3 $40 {[%emt 0:00:06][%mdl 128] White has some attack.} Nxe5 {[%emt 0:00:20]} 13. Bb3 {[%emt 0:05:32][%cal Bc4b3,Bb3a4,Ba4c6][%mdl 32] Black must now prevent Ba4+. A strong pair of Bishops.} Nbc6 {[%emt 0:08:49]} 14. Nb5 $1 {[%emt 0:35:18][%mdl 1024] White has compensation.} Rc8 {[%emt 0:00:23][%cal Oa7a6] Inhibits Nc7+.} (14... Nxf3+ $2 15. Kg2 Rc8 (15... Nh4+ $2 16. Kh3 $18) 16. Kxf3 $18) 15. Ba4 {[%emt 0:06:25]} a6 {[%emt 0:01:57]} (15... Nxf3+ 16. Kg2 Nfe5 17. Nxa7 $18) 16. Na7 {[%emt 0:01:37]} Rd8 {[%emt 0:24:26] Strongly threatening ...Rxd1+.} 17. Bf4 {[%emt 0:07:17]} Nxf3+ {[%emt 0:11:48] [#]} (17... Rd4 $1 $11 18. Nxc6 (18. Rxd4 Nxf3+ 19. Kh1 Nfxd4 $11) (18. Bxe5 Rxa4 19. Bc7 f6 $11) (18. Bxc6+ Nxc6 19. Nxc6 Rxd1+ 20. Rxd1 bxc6 $16) 18... Rxd1+ 19. Rxd1 Nxc6) 18. Kg2 $1 $16 {[%emt 0:02:33]} e5 {[%emt 0:04:48]} 19. Nxc6 {[%emt 0:11:50]} (19. Bxc6+ bxc6 20. Rxd8+ (20. Kxf3 exf4 21. Nxc6 Rd6 $16) 20... Kxd8 21. Nxc6+ Kd7 22. Nxe5+ Nxe5 23. Bxe5 f6 24. Rd1+ Ke6 $11) 19... bxc6 {[%emt 0:00:43] [#]} 20. Bxc6+ {[%emt 0:02:12]} (20. Bg3 $1 $16 Rxd1 21. Rxd1) 20... Ke7 $14 {[%emt 0:00:08]} 21. Kxf3 {[%emt 0:02:16] The position is equal.} exf4 {[%emt 0:02:08]} 22. Ba4 {[%emt 0:03:08]} Rxd1 {[%emt 0:15:11]} 23. Rxd1 {[%emt 0:00:05]} g5 {[%emt 0:00:10]} 24. Rd5 {[%emt 0:06:03] Weighted Error Value: White=0.05 (flawless) /Black=0.08 (flawless) .  Mistake:       	White=1     	Black=1      Inaccurate:     	---       	Black=1      OK:         	White=4     	Black=10     Best:        	White=2     	Black=1      Strong:       	White=2     	---} 1/2-1/2

[Event "Polish Ekstraliga 2024"]
[Site "Walbrzych"]
[Date "2024.10.08"]
[Round "2.21"]
[White "Socko, Bartosz"]
[Black "Butkiewicz, Lukasz"]
[Result "1-0"]
[ECO "E20"]
[WhiteElo "2554"]
[BlackElo "2334"]
[Annotator "TA"]
[PlyCount "99"]
[EventDate "2024.10.05"]
[EventType "team-tourn"]
[EventCountry "POL"]
[SourceTitle "playchess.com"]
[Source "ChessBase"]
[SourceQuality "1"]
[WhiteTeam "Katowice"]
[BlackTeam "Wisznia Mala"]
[TimeControl "40/5400+30:1800+30"]

{[%evp 21,99,18,22,0,-10,-2,0,-20,-17,-21,0,0,0,0,0,0,0,0,0,0,0,0,7,4,12,11,15,4,19,19,28,22,13,13,82,85,68,69,104,93,76,91,67,76,175,178,324,368,404,299,311,325,328,333,306,231,237,249,241,0,183,0,256,264,228,258,239,182,462,449,458,399,619,606,839,803,969,928,871,837]} 1. d4 {[%emt 0:00:03]} Nf6 {[%emt 0:00:10]} 2. c4 {[%emt 0:00:05]} e6 {[%emt 0:00:17]} 3. Nc3 {[%emt 0:00:06]} Bb4 {[%emt 0:00:36]} 4. Bd2 {[%emt 0:00:06]} O-O {[%emt 0:02:18]} 5. Nf3 {[%emt 0:00:16]} b6 {[%emt 0:02:24]} 6. e3 {[%emt 0:01:20]} Bb7 {[%emt 0:01:01]} 7. Rc1 {[%emt 0:00:23]} d6 {[%emt 0:05:20]} 8. Be2 {[%emt 0:05:27]} Nbd7 {[%emt 0:01:04]} 9. O-O {[%emt 0:00:17]} Qe7 {[%emt 0:05:22]} 10. a3 {[%emt 0:05:09]} Bxc3 {[%emt 0:00:11]} 11. Bxc3 {[%emt 0:00:05]} Ne4 {[%emt 0:01:29]} 12. b4 {[%emt 0:02:05]} Nxc3 {[%emt 0:03:08]} 13. Rxc3 {[%emt 0:00:07]} a5 {[%emt 0:03:25]} 14. b5 {The position is equal.} e5 15. Ne1 {[%emt 0:13:27]} Rfe8 {[%emt 0:07:11]} 16. Bf3 {[%emt 0:03:36]} Bxf3 {[%emt 0:01:32]} 17. Nxf3 {[%emt 0:00:24][%cal Be1f3,Bf3d4,Bd4e2,Be2f4,Bf4d5][%mdl 32]} h6 {[%emt 0:02:38]} 18. h3 {[%emt 0:03:56]} Qf6 {[%emt 0:04:07]} 19. dxe5 {[%emt 0:05:04]} Nxe5 {[%emt 0:00:26]} 20. Nd4 {[%emt 0:00:13]} Nd7 {[%emt 0:06:22][%cal Be5d7,Bd7c5,Bc5e6][%mdl 32]} 21. Rc2 {[%emt 0:03:12]} Nc5 {[%emt 0:01:31]} 22. Ne2 {[%emt 0:00:16]} Qf5 {[%emt 0:17:45]} 23. Nf4 {[%emt 0:01:59]} Rac8 {[%emt 0:00:14]} 24. Nd5 {[%emt 0:02:39]} Kf8 {[%emt 0:05:00]} 25. Rd2 {[%emt 0:01:06]} Ne6 {[%emt 0:09:15]} 26. Qe2 {[%emt 0:03:25]} Qg6 {[%emt 0:02:00]} 27. Kh2 {[%emt 0:04:35]} f5 {[%emt 0:01:03]} (27... Nc5 $11 {keeps the balance.}) 28. g4 $1 $16 {[%emt 0:04:06]} Qf7 {[%emt 0:03:04]} 29. gxf5 {[%emt 0:13:54] White has more active pieces.} Qxf5 {[%emt 0:00:03]} 30. e4 {[%emt 0:00:14]} Qf7 {[%emt 0:04:58]} 31. f4 {[%emt 0:14:36]} Nc5 {[%emt 0:00:25]} 32. e5 {[%emt 0:00:06]} Re6 {[%emt 0:01:00] [#]} (32... Rcd8 $16 {was worth a try.}) 33. Qg4 $1 $18 {[%emt 0:01:45] f5 is the strong threat.} Rce8 {[%emt 0:02:42]} (33... c6 $142) 34. Rg2 {[%emt 0:00:19]} h5 {[%emt 0:00:34]} 35. Qg3 {[%emt 0:01:46] And now Rfg1 would win.} h4 {[%emt 0:06:35]} 36. Qxh4 {[%emt 0:01:42]} Rh6 {[%emt 0:00:03]} 37. Qg4 {[%emt 0:00:41]} Ree6 {[%emt 0:00:38]} 38. Rfg1 {[%emt 0:04:18]} Rhg6 {[%emt 0:01:44]} 39. Qh4 {[%emt 0:02:08]} (39. Qxg6 Rxg6 40. Rxg6 Ne6 $11) 39... Rh6 {[%emt 0:00:06] Prevents Rxg6} 40. Qg4 {[%emt 0:00:00]} (40. Qd8+ Re8 41. Qg5 (41. Qxc7 $2 Rxh3+ 42. Kxh3 Qh5+ 43. Kg3 Ne4#) 41... Ne6 $18) 40... Rhg6 $1 {[%emt 0:00:00]} 41. Qh4 {[%emt 0:16:26]} (41. Qxg6 Rxg6 42. Rxg6 Ne6 $11) (41. Qe2 $142 {Strongly threatening Rxg6.} Rxg2+ 42. Rxg2) 41... Rh6 {[%emt 0:05:45] Prevents Rxg6} 42. Qd8+ {[%emt 0:00:24]} Re8 {[%emt 0:00:08] [#]} 43. Qg5 {[%emt 0:00:09]} (43. Qxc7 $2 {is a self mate.} Rxh3+ 44. Kxh3 Qh5+ 45. Kg3 Ne4#) 43... Ne6 {[%emt 0:02:10]} 44. Qg4 {[%emt 0:00:36] Black must now prevent f5.} Rh5 {[%emt 0:02:14]} (44... Nd4) 45. exd6 {[%emt 0:02:58]} cxd6 {[%emt 0:00:10]} 46. Re1 {[%emt 0:00:36]} (46. Nxb6 Qxf4+ 47. Qg3 (47. Qxf4+ Nxf4 48. Rf1 g5 $16) 47... Qxg3+ 48. Rxg3 g5 $18) 46... Rf5 {[%emt 0:02:10]} (46... Rh6 $142 47. Rg3 (47. Nxb6 g6 $18) 47... g6) 47. Rge2 {[%emt 0:02:21] White is clearly winning.} g6 {[%emt 0:04:17]} 48. Re4 {[%emt 0:01:37]} g5 {[%emt 0:01:57]} 49. fxg5 {[%emt 0:01:02] Hoping for g6.} Rxg5 {[%emt 0:00:27] [#]} 50. Qxg5 $3 {[%emt 0:05:57][%mdl 512] Weighted Error Value: White=0.31/Black=0.33.  Mistake:       	White=1     	Black=5      Inaccurate:     	---       	Black=2      OK:         	White=23    	Black=15     Best:        	White=1     	Black=1      Strong:       	White=2     	Black=1} 1-0

[Event "Polish Ekstraliga 2024"]
[Site "Walbrzych"]
[Date "2024.10.08"]
[Round "2.22"]
[White "Luch, Michal"]
[Black "Klimkowski, Jan"]
[Result "0-1"]
[ECO "D04"]
[WhiteElo "2332"]
[BlackElo "2477"]
[Annotator "RC"]
[PlyCount "54"]
[EventDate "2024.10.05"]
[EventType "team-tourn"]
[EventCountry "POL"]
[SourceTitle "playchess.com"]
[Source "ChessBase"]
[SourceQuality "1"]
[WhiteTeam "Wisznia Mala"]
[BlackTeam "Katowice"]
[TimeControl "40/5400+30:1800+30"]

1. d4 {[%emt 0:00:01]} Nf6 {[%emt 0:00:09]} 2. Nf3 {[%emt 0:00:03]} d5 {[%emt 0:00:16]} 3. e3 {[%emt 0:06:00]} c5 4. Nbd2 {[%emt 0:00:10]} Nc6 {[%emt 0:03:43]} 5. dxc5 {[%emt 0:00:03]} e6 {[%emt 0:07:09]} 6. a3 a5 {[%emt 0:07:15]} 7. b3 {[%emt 0:11:58]} Bxc5 {[%emt 0:00:31]} 8. Bb2 {[%emt 0:00:08]} O-O {[%emt 0:01:39]} 9. Bb5 {[%emt 0:08:27]} Qe7 {[%emt 0:12:53]} 10. O-O {[%emt 0:24:21]} Bd6 {[%emt 0:05:56]} 11. e4 {[%emt 0:01:58]} Nxe4 {[%emt 0:00:30]} 12. Nxe4 {[%emt 0:00:30]} dxe4 {[%emt 0:00:05]} 13. Bxc6 {[%emt 0:01:37]} bxc6 {[%emt 0:02:13]} 14. Qd4 {[%emt 0:01:47]} f5 {[%emt 0:06:32]} 15. Ne5 {[%emt 0:00:16]} c5 {[%emt 0:00:28]} 16. Qc3 {[%emt 0:00:31]} Bb7 {[%emt 0:00:37]} 17. Rfd1 {[%emt 0:02:34]} Bd5 {[%emt 0:03:51]} 18. a4 {[%emt 0:02:32]} f4 {[%emt 0:01:26]} 19. Nc4 {[%emt 0:23:11]} Bc7 {[%emt 0:01:37]} 20. Nd2 {[%emt 0:00:02]} Rf5 {[%emt 0:03:08]} 21. Qh3 {[%emt 0:02:21]} Rd8 {[%emt 0:12:22]} 22. Bc3 {[%emt 0:02:42]} Qf7 {[%emt 0:10:22]} 23. Nc4 {[%emt 0:06:41]} Qg6 {[%emt 0:02:23]} 24. Bxa5 {[%emt 0:00:47]} Bxa5 {[%emt 0:00:11]} 25. Nxa5 {[%emt 0:00:01]} Rh5 {[%emt 0:00:16]} 26. Qc3 {[%emt 0:00:50]} f3 {[%emt 0:00:51]} 27. g3 {[%emt 0:00:31]} Rxh2 {[%emt 0:00:50]} 0-1

[Event "Polish Ekstraliga 2024"]
[Site "Walbrzych"]
[Date "2024.10.08"]
[Round "2.23"]
[White "Seemann, Jakub"]
[Black "Skawinski, Arkadiusz"]
[Result "1-0"]
[ECO "C02"]
[WhiteElo "2489"]
[BlackElo "2333"]
[Annotator "TA"]
[PlyCount "105"]
[EventDate "2024.10.05"]
[EventType "team-tourn"]
[EventCountry "POL"]
[SourceTitle "playchess.com"]
[Source "ChessBase"]
[SourceQuality "1"]
[WhiteTeam "Katowice"]
[BlackTeam "Wisznia Mala"]
[TimeControl "40/5400+30:1800+30"]

{[%evp 23,105,28,20,29,23,12,41,41,38,54,42,38,34,54,38,34,85,108,95,72,294,300,293,202,267,207,282,222,364,169,150,160,174,162,170,162,233,175,249,253,245,239,251,247,237,189,185,177,295,328,325,291,288,284,270,240,272,258,250,254,281,269,278,225,284,279,284,277,354,378,419,419,419,397,389,357,369,356,1471,1341,1314,1242,1590,1517]} 1. e4 {[%emt 0:00:05]} e6 {[%emt 0:00:10]} 2. d4 {[%emt 0:00:06]} d5 {[%emt 0:00:07]} 3. e5 {[%emt 0:00:06]} c5 {[%emt 0:00:22]} 4. c3 {[%emt 0:00:07]} Nc6 {[%emt 0:01:01]} 5. Nf3 {[%emt 0:00:09]} Bd7 {[%emt 0:01:57]} 6. Be2 {[%emt 0:00:26]} Nge7 {[%emt 0:01:32]} 7. O-O {[%emt 0:00:15]} Ng6 {[%emt 0:05:07]} 8. g3 {[%emt 0:01:05]} f6 {[%emt 0:22:26] is recently more successful than 8...Be7. C02: French: Advance Variation.} 9. exf6 {[%emt 0:02:43]} Qxf6 {[%emt 0:03:40]} 10. Na3 {[%emt 0:00:38]} a6 $146 ({Predecessor:} 10... cxd4 11. Nb5 Rc8 12. Nbxd4 Nxd4 13. cxd4 Bd6 14. Bg5 Qf5 15. Bd3 Qh3 16. Be3 Qh5 {1-0 Kovanova,B (2309)-Petrukhina,O (2079) Ufa Penzina Memorial 2023 (7)}) 11. Nc2 {[%emt 0:16:19]} cxd4 {[%emt 0:12:30]} 12. cxd4 {[%emt 0:01:07]} Bd6 {[%emt 0:00:13]} 13. Ne3 {[%emt 0:01:14]} O-O {[%emt 0:04:06]} 14. Ng4 {[%emt 0:02:16]} Qf5 {[%emt 0:01:46]} 15. Ng5 {[%emt 0:04:43]} h5 {[%emt 0:08:21]} 16. f3 {[%emt 0:24:44]} Nb4 {[%emt 0:00:57]} (16... hxg4 $2 17. fxg4 $18) 17. a3 {[%emt 0:03:36]} Qc2 $1 {[%emt 0:06:15]} 18. Ne3 {[%emt 0:09:45]} Qxd1 {[%emt 0:00:06]} 19. Rxd1 {[%emt 0:00:08]} Nc6 {[%emt 0:00:05]} (19... Bb5 $14 20. Bxb5 axb5) 20. f4 $16 {[%emt 0:00:07]} h4 {[%emt 0:00:36]} 21. Bg4 {[%emt 0:00:22]} Rfe8 $2 {[%emt 0:16:04]} (21... Nge7 $16) 22. Nxd5 $18 {[%emt 0:06:53]} Rad8 {[%emt 0:07:42]} 23. Nc3 {[%emt 0:14:37]} Bb8 {[%emt 0:02:40]} 24. Be3 {[%emt 0:00:56]} Ba7 {[%emt 0:00:05]} 25. Bf2 {[%emt 0:00:52]} Bc8 {[%emt 0:01:10]} (25... hxg3 $142 26. hxg3 Nf8) 26. Ne2 {[%emt 0:00:53]} (26. gxh4 Nxf4 27. d5 Bxf2+ 28. Kxf2 Ne5 29. Bxe6+ Bxe6 30. dxe6 Ned3+ 31. Kg1 Nxe6 $17) (26. Bh5 $142 Nce7 27. Re1 (27. gxh4 Rf8 $14) 27... Bxd4 28. Bxd4 (28. Nxe6 Bxf2+ 29. Kxf2 Rd2+ 30. Kg1 Rxb2 $16) 28... Rxd4 29. f5 (29. Nxe6 Rd3 $18)) 26... hxg3 $18 {[%emt 0:00:41]} 27. hxg3 {[%emt 0:00:05]} Nge7 {[%emt 0:00:49]} 28. Kg2 {[%emt 0:02:20]} ({But not} 28. Nxe6 $6 Rd6 $16) 28... Nf5 {[%emt 0:00:36]} 29. Bh5 {[%emt 0:00:19]} Re7 {[%emt 0:00:36]} (29... Rf8 $142 30. Bg6 Rf6 31. Bh7+ Kf8) 30. Bg6 {[%emt 0:00:47]} b5 {[%emt 0:01:38]} (30... Nh6 {is a better defense.} 31. Bh5 Bd7) 31. g4 $18 {[%emt 0:04:51]} Nh6 {[%emt 0:00:55]} 32. Kg3 {[%emt 0:00:55]} Rd6 {[%emt 0:00:58]} 33. Bh7+ {[%emt 0:01:23]} Kf8 {[%emt 0:00:18]} 34. Be4 {[%emt 0:00:05]} Nf7 {[%emt 0:00:36]} 35. Nf3 {[%emt 0:00:31]} Bb8 {[%emt 0:00:52]} (35... Bb7 {was worth a try.} 36. Kg2 b4) 36. Ne5 $18 {[%emt 0:01:39]} Ncxe5 {[%emt 0:00:32]} 37. fxe5 {[%emt 0:00:28]} Rd8 {[%emt 0:00:40]} 38. Be3 {[%emt 0:00:01]} Bb7 {[%emt 0:00:22]} 39. Bxb7 {[%emt 0:00:33]} Rxb7 {[%emt 0:00:02]} 40. Rac1 {[%emt 0:00:00]} Nxe5 {[%emt 0:00:00]} 41. dxe5 {[%emt 0:02:30]} Rxd1 {[%emt 0:01:50]} 42. Rxd1 {[%emt 0:00:22]} Bxe5+ {[%emt 0:00:05]} 43. Kf3 {[%emt 0:06:00]} Bxb2 {[%emt 0:00:53]} 44. Bc5+ {[%emt 0:00:19]} Kf7 {[%emt 0:00:37]} 45. Rd8 {[%emt 0:01:12]} a5 {[%emt 0:02:34]} 46. Nf4 {[%emt 0:02:41]} g6 {[%emt 0:03:05]} 47. Rf8+ {[%emt 0:00:06]} Kg7 {[%emt 0:00:01]} 48. Nxe6+ {[%emt 0:00:07]} Kh7 {[%emt 0:00:08]} 49. Rf4 {[%emt 0:04:12]} b4 {[%emt 0:02:30]} 50. axb4 {[%emt 0:00:12]} a4 $2 {[%emt 0:00:03]} (50... axb4 51. Bxb4 (51. Rxb4 Rxb4 52. Bxb4 g5 $18) 51... Rb6 52. Ng5+ Kg8) 51. Rf8 $18 {[%emt 0:00:20]} Bc3 {[%emt 0:07:51]} 52. Ra8 {[%emt 0:00:15]} a3 {[%emt 0:01:40]} 53. g5 {[%emt 0:00:34]} 1-0

[Event "Polish Ekstraliga 2024"]
[Site "Walbrzych"]
[Date "2024.10.08"]
[Round "2.24"]
[White "Bartel, Marta"]
[Black "Socko, Monika"]
[Result "1/2-1/2"]
[ECO "A45"]
[WhiteElo "2214"]
[BlackElo "2419"]
[Annotator "RC"]
[PlyCount "44"]
[EventDate "2024.10.05"]
[EventType "team-tourn"]
[EventCountry "POL"]
[SourceTitle "playchess.com"]
[Source "ChessBase"]
[SourceQuality "1"]
[WhiteTeam "Wisznia Mala"]
[BlackTeam "Katowice"]
[TimeControl "40/5400+30:1800+30"]

1. d4 {[%emt 0:00:06]} Nf6 {[%emt 0:00:05]} 2. Bg5 {[%emt 0:00:15]} e6 {[%emt 0:00:10]} 3. e4 {[%emt 0:00:20]} h6 {[%emt 0:00:28]} 4. Bxf6 {[%emt 0:00:07]} Qxf6 {[%emt 0:00:04]} 5. c3 {[%emt 0:00:18]} d6 {[%emt 0:01:58]} 6. Nf3 {[%emt 0:00:41]} Nc6 {[%emt 0:02:40]} 7. Nbd2 {[%emt 0:02:01]} g6 {[%emt 0:04:35]} 8. d5 {[%emt 0:11:17]} Nb8 {[%emt 0:00:59]} 9. Bb5+ {[%emt 0:02:55]} c6 {[%emt 0:05:51]} 10. Ba4 {[%emt 0:06:41]} e5 11. dxc6 {[%emt 0:16:11]} bxc6 {[%emt 0:15:46]} 12. Nc4 {[%emt 0:02:57]} Be7 {[%emt 0:00:46]} 13. Na5 {[%emt 0:03:56]} O-O {[%emt 0:06:48]} 14. Nxc6 {[%emt 0:03:48]} Nxc6 {[%emt 0:00:05]} 15. Bxc6 {[%emt 0:00:04]} Rb8 {[%emt 0:00:04]} 16. b3 {[%emt 0:05:01]} Bg4 {[%emt 0:03:17]} 17. Bd5 {[%emt 0:01:29]} Rfc8 {[%emt 0:00:47]} 18. c4 {[%emt 0:05:01]} a5 {[%emt 0:03:05]} 19. Rb1 {[%emt 0:06:17]} Bd8 {[%emt 0:04:35]} 20. h3 {[%emt 0:05:48]} Bxf3 {[%emt 0:03:48]} 21. Qxf3 {[%emt 0:00:30]} Qxf3 {[%emt 0:00:21]} 22. gxf3 {[%emt 0:00:01]} Bb6 {[%emt 0:00:28]} 1/2-1/2

[Event "Polish Ekstraliga 2024"]
[Site "Walbrzych"]
[Date "2024.10.08"]
[Round "2.25"]
[White "Svane, Rasmus"]
[Black "Sowinski, Pawel"]
[Result "1-0"]
[ECO "A06"]
[WhiteElo "2629"]
[BlackElo "2455"]
[Annotator "TA"]
[PlyCount "89"]
[EventDate "2024.10.05"]
[EventType "team-tourn"]
[EventCountry "POL"]
[SourceTitle "playchess.com"]
[Source "ChessBase"]
[SourceQuality "1"]
[WhiteTeam "Gliwice"]
[BlackTeam "Sedziszow Malopolski"]
[TimeControl "40/5400+30:1800+30"]

{[%evp 9,89,0,0,1,0,11,9,0,42,32,37,45,85,39,45,39,45,28,28,28,54,27,32,38,29,39,49,42,52,47,84,76,97,81,80,80,109,73,65,53,54,54,62,62,59,73,66,66,81,86,103,79,93,0,139,0,76,77,78,62,70,70,87,62,87,84,85,78,109,96,168,168,168,168,168,168,238,238,327,293,363,342]} 1. Nf3 {[%emt 0:00:03]} d5 {[%emt 0:00:04]} 2. e3 {[%emt 0:00:08]} Nf6 {[%emt 0:01:32]} 3. c4 {[%emt 0:00:10]} e6 {[%emt 0:04:25]} 4. Nc3 {[%emt 0:00:17]} a6 {[%emt 0:03:11]} 5. cxd5 {[%emt 0:04:54]} exd5 {[%emt 0:00:19]} 6. g3 {[%emt 0:00:05]} Be7 {[%emt 0:02:06]} 7. Bg2 {[%emt 0:00:37]} O-O {[%emt 0:00:18]} 8. O-O {[%emt 0:00:45] The position is equal.} c5 {[%emt 0:01:05]} 9. b3 {[%emt 0:22:45]} Nc6 10. Bb2 d4 {[%emt 0:25:31] [#]} 11. Ne2 {[%emt 0:07:47]} (11. Na4 $1 $16) 11... dxe3 {[%emt 0:00:22]} 12. dxe3 {[%emt 0:04:37]} Bf5 {[%emt 0:05:19]} 13. Nf4 {[%emt 0:10:16]} Qxd1 {[%emt 0:05:40]} 14. Rfxd1 {[%emt 0:02:57]} Be4 {[%emt 0:01:12]} 15. Ne5 {[%emt 0:16:47] Nxc6 is the strong threat.} Bxg2 {[%emt 0:07:02]} 16. Kxg2 {[%emt 0:00:15] Nxc6 would now be deadly.} Nxe5 {[%emt 0:00:59]} 17. Bxe5 {[%emt 0:00:02]} Rfd8 {[%emt 0:01:01]} 18. Rac1 {[%emt 0:04:12]} Rac8 {[%emt 0:02:46]} 19. Bxf6 {[%emt 0:06:41]} Bxf6 {[%emt 0:04:53]} 20. Nd5 {[%emt 0:01:26]} Re8 {[%emt 0:00:37]} 21. Nxf6+ {[%emt 0:01:29]} gxf6 $16 {[%emt 0:00:18][%mdl 4096] Endgame. KRR-KRR} 22. Kf3 {[%emt 0:06:21]} Rc6 {[%emt 0:02:07]} 23. Rd7 {[%emt 0:02:04]} b5 {[%emt 0:00:18]} 24. Rb7 {[%emt 0:03:24] White is more active.} c4 {[%emt 0:01:35]} 25. bxc4 {[%emt 0:00:30]} bxc4 {[%emt 0:00:02]} 26. Rc3 {[%emt 0:01:36]} Re5 {[%emt 0:01:50]} 27. Rb4 {[%emt 0:00:30]} Rf5+ {[%emt 0:00:11]} 28. Ke2 {[%emt 0:00:14]} Rfc5 {[%emt 0:00:02]} 29. e4 {[%emt 0:02:07]} Rc7 {[%emt 0:19:28]} 30. Ke3 {[%emt 0:00:13]} R5c6 {[%emt 0:00:23]} 31. Kd4 {[%emt 0:01:07]} (31. g4 $16) 31... Rd6+ {[%emt 0:00:02]} (31... Rd7+ $11 32. Ke3 Rdc7) 32. Ke3 {[%emt 0:00:06]} Rdc6 {[%emt 0:00:00]} 33. g4 {[%emt 0:01:02]} Kg7 {[%emt 0:00:47]} 34. Ra4 {[%emt 0:00:26]} Rc8 {[%emt 0:01:57]} 35. h4 {[%emt 0:00:46]} R8c7 {[%emt 0:01:29]} 36. f3 {[%emt 0:00:10]} Rc8 {[%emt 0:00:03]} 37. Ra5 {[%emt 0:00:13]} Rb8 {[%emt 0:00:53]} 38. Kd4 {[%emt 0:00:39]} Rb1 {[%emt 0:00:19]} 39. Rc5 {[%emt 0:01:16]} (39. Rxc4 $2 Rd1+ 40. Ke3 Rxc4 $19) 39... Rcb6 {[%emt 0:01:25]} (39... Rxc5 $16 {was necessary.} 40. Kxc5 h5) 40. R5xc4 {[%emt 0:00:00]} (40. Kxc4 $6 R6b4+ 41. Kd3 Ra4 $14) 40... Ra1 {[%emt 0:00:00]} 41. Ra4 {[%emt 0:07:25]} Rb2 {[%emt 0:10:19]} 42. Rca3 {[%emt 0:05:44]} ({Don't play} 42. Rxa6 $6 Rbxa2 43. Rxa2 Rxa2 $14) 42... Rh2 {[%emt 0:04:36]} (42... Re1 $142 43. Rb3 (43. Rxa6 Ree2 $16) 43... Rd2+ 44. Rd3 Rde2 45. Rxa6 h5) 43. h5 $18 {[%emt 0:01:53]} (43. Rxa6 Rd1+ 44. Ke3 h5) 43... Re1 {[%emt 0:01:00]} 44. Rxa6 {[%emt 0:01:53]} Ree2 {[%emt 0:00:06]} 45. R3a5 {[%emt 0:03:56] Weighted Error Value: White=0.10 (very precise) /Black=0.21 (precise) .  Mistake:       	White=2     	Black=3      Inaccurate:     	White=3     	Black=7      OK:         	White=15    	Black=9      Best:        	White=1     	Black=3} 1-0

[Event "Polish Ekstraliga 2024"]
[Site "Walbrzych"]
[Date "2024.10.08"]
[Round "2.26"]
[White "Sernecki, Franciszek"]
[Black "Tomczak, Jacek"]
[Result "1/2-1/2"]
[ECO "D92"]
[WhiteElo "2335"]
[BlackElo "2584"]
[Annotator "TA"]
[PlyCount "50"]
[EventDate "2024.10.05"]
[EventType "team-tourn"]
[EventCountry "POL"]
[SourceTitle "playchess.com"]
[Source "ChessBase"]
[SourceQuality "1"]
[WhiteTeam "Sedziszow Malopolski"]
[BlackTeam "Gliwice"]
[TimeControl "40/5400+30:1800+30"]

{[%evp 10,50,8,8,33,30,33,36,20,10,28,31,17,22,26,29,28,-12,0,-2,-16,0,0,-14,0,0,-14,-16,-5,-12,-13,-13,-12,-14,0,0,0,0,0,0,0,0,3]} 1. d4 {[%emt 0:00:25]} Nf6 {[%emt 0:00:09]} 2. c4 {[%emt 0:00:18]} g6 {[%emt 0:00:11]} 3. Nc3 {[%emt 0:00:08]} d5 {[%emt 0:00:13]} 4. Nf3 {[%emt 0:00:50]} Bg7 {[%emt 0:00:54]} 5. Bf4 {[%emt 0:00:36]} O-O {[%emt 0:00:16]} 6. Rc1 {[%emt 0:00:23]} Bg4 {[%emt 0:00:17]} 7. e3 {[%emt 0:05:35]} c5 {[%emt 0:00:24]} 8. dxc5 {[%emt 0:03:24][%cal Rc4d5]} Bxf3 {[%emt 0:00:21] White is slightly better.} 9. Qxf3 {[%emt 0:07:05][%cal Rc4d5]} Ne4 $1 {[%emt 0:00:36]} 10. cxd5 {[%emt 0:03:09]} Bxc3+ {[%emt 0:02:38]} 11. bxc3 {[%emt 0:01:59]} ({But not} 11. Rxc3 Nxc3 12. bxc3 Qa5 $17) 11... Qxd5 {[%emt 0:00:24]} 12. Rd1 {[%emt 0:05:38][%cal Bc1d1,Bd1d5,Bd5d7][%mdl 32] Dodges Qd2+} Qc6 {[%emt 0:00:09]} 13. Bh6 {[%emt 0:07:44]} Rc8 {[%emt 0:00:27] The position is equal.} 14. Bc4 $132 {[%mdl 2048] White puts up resistance} Nf6 $1 {A dynamic duo of knights.} 15. Bd5 {[%emt 0:13:57]} Nxd5 {[%emt 0:03:48]} 16. Rxd5 {[%emt 0:06:30]} Nd7 {[%emt 0:11:38]} 17. O-O {[%emt 0:02:13]} Nxc5 {[%emt 0:01:24]} 18. Rfd1 {[%emt 0:02:17]} Ne6 {[%emt 0:05:14]} 19. Rd7 {[%emt 0:06:10]} Qxf3 {[%emt 0:03:27]} 20. gxf3 {[%emt 0:00:11]} Rd8 {[%emt 0:00:13]} 21. e4 {[%emt 0:05:56]} f6 {[%emt 0:02:46]} 22. Bc1 {[%emt 0:00:51]} Rac8 {[%emt 0:06:39]} 23. Ba3 {[%emt 0:02:32] next Rxd8+ is good for White.} Rxd7 {[%emt 0:00:37]} 24. Rxd7 {[%emt 0:00:06]} Rxc3 {[%emt 0:00:10]} 25. Bxe7 {[%emt 0:01:31]} g5 {[%emt 0:27:33] Weighted Error Value: White=0.04 (flawless) /Black=0.02 (flawless) .  Inaccurate:     	White=1     	---        OK:         	White=9     	Black=13     Best:        	White=1     	Black=1      Strong:       	---       	Black=2} 1/2-1/2